bitfinex/quotes_SOLUSD_20251223
["timestamp","ask_amount","ask_price","bid_price","bid_amount"]
[1766468738157,0.38,125.06,125.04,0.67]
[1766468738981,12.60075218,125.07,125.04,0.67]
[1766468741583,12.22075218,125.07,125.03,4.22517062]
[1766468741786,0.38,125.06,125.03,4.93517062]
[1766468743687,8.37640834,125.06,125.03,4.93517062]
[1766468744380,8.37640834,125.06,125.04,0.71]
[1766468746589,7.99640834,125.06,125.04,0.71]
[1766468746965,8.37640834,125.06,125.04,0.71]
[1766468747165,12.60157896,125.06,125.03,0.71]
[1766468756794,12.22157896,125.06,125.03,0.71]
[1766468756974,0.38,125.05,125.01,4.22517062]
[1766468757177,0.38,125.05,125.02,0.71]
[1766468757380,7.99686326,125.05,125.02,0.71]
[1766468757581,8.37686326,125.05,125.02,0.71]
[1766468759098,7.99686326,125.05,125.02,0.71]
[1766468759581,12.22203388,125.05,125.02,0.71]
[1766468760090,12.60203388,125.05,125.02,0.71]
[1766468771509,8.37686326,125.05,125.02,0.71]
[1766468771885,12.60203388,125.05,125.02,0.71]
[1766468774211,8.37686326,125.05,125.02,0.71]
[1766468779406,0.38,125.04,124.99,0.67]
[1766468779796,4.60517062,125.03,125.0,0.67]
[1766468780821,12.60350276,125.03,125.0,0.67]
[1766468782821,12.22350276,125.03,125.0,0.67]
[1766468783521,12.60350276,125.03,125.0,0.67]
[1766468783695,8.37833214,125.03,125.0,0.67]
[1766468784295,15.99938909,125.04,125.0,4.22517062]
[1766468784499,7.99757441,125.04,125.02,0.67]
[1766468785115,8.37757441,125.04,125.02,0.67]
[1766468785623,7.99757441,125.04,125.02,0.67]
[1766468787929,8.37757441,125.04,125.02,0.67]
[1766468788826,12.60274503,125.04,124.98,8.00121034]
[1766468789016,4.22517062,125.03,124.99,0.67]
[1766468789223,12.60274503,125.04,125.0,0.67]
[1766468789725,12.60274503,125.04,125.01,0.67]
[1766468793330,8.37757441,125.04,125.01,0.67]
[1766468795244,12.60274503,125.04,125.01,0.67]
[1766468795425,0.38,125.03,125.01,0.67]
[1766468795636,4.60517062,125.03,125.01,0.67]
[1766468795830,4.60517062,125.03,124.99,0.7]
[1766468796634,12.60334049,125.03,124.99,0.7]
[1766468797024,8.37816987,125.03,124.99,0.7]
[1766468797236,8.37816987,125.03,124.99,4.22517062]
[1766468797537,8.37816987,125.03,125.0,0.67]
[1766468799237,0.7,125.01,124.96,10.43767296]
[1766468799439,0.7,125.01,124.96,13.14358252]
[1766468799735,3.40590956,125.01,124.95,22.62298767]
[1766468799914,2.70590956,125.01,124.96,2.70590956]
[1766468800113,2.70590956,125.01,124.94,10.70954279]
[1766468800114,0.7,124.99,124.94,10.70954279]
[1766468800317,0.7,124.99,124.95,2.70590956]
[1766468800723,0.7,124.99,124.94,8.00363323]
[1766468800921,2.70590956,125.0,124.95,2.70590956]
[1766468801109,3.40590956,125.0,124.95,2.70590956]
[1766468801306,11.40601942,125.0,124.96,0.67]
[1766468802337,0.7,124.99,124.96,0.67]
[1766468803035,3.40590956,124.99,124.96,0.67]
[1766468803333,0.7,124.99,124.96,0.67]
[1766468803530,8.7008653,124.99,124.96,0.67]
[1766468805513,10.91026626,125.0,124.99,0.67]
[1766468805514,10.43767296,125.0,124.99,0.67]
[1766468805711,8.00383745,125.02,125.0,0.67]
[1766468805916,8.69830194,125.03,125.0,0.67]
[1766468806535,23.31755905,125.04,125.01,0.67]
[1766468810450,8.69755905,125.04,125.01,0.67]
[1766468813456,11.40346861,125.04,125.01,0.67]
[1766468814564,8.69755905,125.04,125.01,0.67]
[1766468815257,11.40346861,125.04,124.99,0.67]
[1766468815445,11.40346861,125.04,125.0,0.67]
[1766468816160,10.70346861,125.04,125.0,0.67]
[1766468816358,0.7,125.03,125.0,0.67]
[1766468816558,11.40346861,125.04,125.0,0.67]
[1766468817951,0.7,125.03,125.0,0.67]
[1766468820661,0.7,125.03,125.01,0.67]
[1766468823271,8.69755905,125.04,125.01,0.67]
[1766468823476,7.99755905,125.04,125.01,0.67]
[1766468824576,8.69755905,125.04,125.01,0.67]
[1766468825172,0.7,125.03,125.01,0.67]
[1766468825968,8.64755905,125.04,125.01,0.67]
[1766468827578,0.65,125.03,125.01,0.67]
[1766468827761,0.65,125.03,125.0,3.41590956]
[1766468828450,8.64755905,125.04,125.01,0.71]
[1766468833968,0.65,125.03,125.01,0.71]
[1766468835685,8.64755905,125.04,125.01,0.71]
[1766468838774,0.65,125.03,125.01,0.71]
[1766468839584,0.65,125.02,124.98,2.70590956]
[1766468839884,0.65,125.02,124.99,0.71]
[1766468840895,0.65,125.01,124.97,0.71]
[1766468841264,0.65,125.01,124.97,2.70590956]
[1766468841470,0.65,125.01,124.98,0.71]
[1766468841992,8.64961765,125.01,124.98,0.71]
[1766468846592,11.35552721,125.01,124.98,0.71]
[1766468846797,8.64961765,125.01,124.98,0.71]
[1766468850086,7.99896772,125.02,124.99,0.71]
[1766468850472,8.64896772,125.02,124.99,0.71]
[1766468851396,8.64896772,125.02,124.99,3.41590956]
[1766468851920,22.61754427,125.04,125.01,2.70590956]
[1766468852190,0.65,125.07,125.04,0.71]
[1766468852390,8.64613891,125.07,125.04,0.71]
[1766468852569,0.65,125.06,125.03,0.71]
[1766468853485,33.70278309,125.08,125.05,3.41590956]
[1766468853793,19.34930676,125.1,125.07,2.70590956]
[1766468853998,8.64374178,125.1,125.07,3.41590956]
[1766468854196,0.65,125.09,125.04,0.71]
[1766468854399,8.64433098,125.09,125.06,0.71]
[1766468854585,8.64433098,125.09,125.06,3.41590956]
[1766468857599,0.71,125.06,124.96,0.72]
[1766468857806,0.71,125.04,125.0,2.70590956]
[1766468857993,0.71,125.04,125.01,0.72]
[1766468858197,4.9374566,125.05,125.01,0.72]
[1766468859000,7.99686989,125.05,124.97,10.43767296]
[1766468859206,4.2274566,125.01,124.97,0.68]
[1766468859513,0.71,125.02,124.99,0.68]
[1766468862613,8.70894346,125.02,124.99,0.68]
[1766468863922,7.99894346,125.02,124.99,0.68]
[1766468864098,8.70894346,125.02,124.99,0.68]
[1766468864614,7.99826173,125.03,124.99,4.2274566]
[1766468864792,14.6,125.04,125.01,0.68]
[1766468864993,27.14694376,125.05,125.01,0.68]
[1766468865191,19.14467253,125.05,125.01,0.68]
[1766468865789,0.71,125.04,125.01,0.68]
[1766468865988,4.9374566,125.04,125.01,0.68]
[1766468867820,12.93547039,125.04,125.01,0.68]
[1766468872435,8.70801379,125.04,125.01,0.68]
[1766468872732,12.93547039,125.04,125.01,0.68]
[1766468873745,26.43648562,125.05,125.01,0.68]
[1766468874029,18.43457999,125.05,125.02,0.68]
[1766468874209,19.14457999,125.05,125.02,0.68]
[1766468875631,18.43457999,125.05,125.02,0.68]
[1766468876020,22.59629459,125.06,125.04,0.68]
[1766468876224,15.33,125.08,125.04,4.2274566]
[1766468876459,15.33,125.08,125.05,0.68]
[1766468876734,19.14214435,125.09,125.06,0.68]
[1766468877909,8.70447139,125.09,125.06,0.68]
[1766468880230,33.0514926,125.1,125.06,4.2274566]
[1766468880434,33.0514926,125.1,125.07,0.68]
[1766468881015,33.7614926,125.1,125.07,0.68]
[1766468883118,33.76130403,125.1,125.07,4.9074566]
[1766468883322,33.76130403,125.1,125.07,0.68]
[1766468888442,0.69,125.07,125.03,0.72]
[1766468888626,4.9174566,125.07,125.03,0.72]
[1766468889048,0.69,125.06,125.03,0.72]
[1766468890044,4.2274566,125.07,125.03,0.72]
[1766468890222,0.69,125.07,125.03,0.72]
[1766468890420,12.91336542,125.07,125.03,0.72]
[1766468891146,0.69,125.06,125.03,0.72]
[1766468892233,8.686412,125.06,125.03,0.72]
[1766468897170,8.686412,125.06,125.02,0.72]
[1766468897171,0.69,125.05,125.02,0.72]
[1766468897465,4.9174566,125.05,125.01,0.72]
[1766468898456,0.69,125.05,125.01,0.72]
[1766468898639,4.9174566,125.05,125.01,0.72]
[1766468898841,0.69,125.04,124.99,0.72]
[1766468899055,4.9174566,125.04,125.0,0.72]
[1766468899361,12.91539314,125.04,125.0,0.72]
[1766468900764,8.68812391,125.03,125.0,0.72]
[1766468901346,0.69,125.02,124.99,0.72]
[1766468902472,4.9174566,125.01,124.96,0.72]
[1766468902770,12.91682127,125.01,124.98,0.72]
[1766468903950,8.68936467,125.01,124.98,0.72]
[1766468906584,8.68936467,125.01,124.95,0.72]
[1766468906585,0.69,124.99,124.95,0.72]
[1766468906752,4.9174566,124.98,124.95,0.72]
[1766468906946,0.69,124.98,124.95,0.72]
[1766468907554,4.2274566,125.0,124.95,0.72]
[1766468907748,4.9174566,124.99,124.95,0.72]
[1766468907958,0.69,124.99,124.95,4.9474566]
[1766468908274,0.69,124.99,124.96,0.72]
[1766468908570,8.69067857,124.99,124.96,0.72]
[1766468910654,8.69067857,124.99,124.95,0.72]
[1766468910960,8.00067857,124.99,124.95,0.72]
[1766468911169,8.69067857,124.99,124.95,0.72]
[1766468911876,8.71067857,124.99,124.95,0.72]
[1766468912568,12.22813517,124.99,124.95,0.72]
[1766468912771,12.2292612,124.98,124.93,0.2]
[1766468912949,0.71,124.97,124.94,0.66]
[1766468913552,8.7118046,124.98,124.94,0.66]
[1766468914246,22.62071698,124.99,124.96,0.66]
[1766468914451,8.00071698,124.99,124.96,0.66]
[1766468915470,8.71071698,124.99,124.96,0.66]
[1766468915681,12.93817358,124.99,124.96,0.66]
[1766468916057,8.71071698,124.99,124.96,0.66]
[1766468916254,42.82346209,125.01,124.96,0.66]
[1766468916453,42.82346209,125.01,124.97,0.71]
[1766468916454,14.62,125.01,124.97,0.71]
[1766468916773,8.20440315,125.03,125.0,0.71]
[1766468916953,8.20440315,125.03,124.96,22.62255442]
[1766468916954,4.2274566,125.06,125.01,4.2274566]
[1766468917157,0.68,125.07,125.03,4.2274566]
[1766468917350,10.43767296,125.07,125.04,0.71]
[1766468917576,30.43043334,125.07,125.04,0.71]
[1766468917756,15.3,125.08,125.04,0.71]
[1766468917962,0.68,125.08,125.05,0.71]
[1766468918177,22.6593737,125.09,125.05,0.71]
[1766468918360,4.9074566,125.08,125.04,0.71]
[1766468918687,4.9074566,125.07,125.04,0.71]
[1766468919275,0.68,125.07,125.01,14.62]
[1766468919459,4.9074566,125.07,125.03,0.71]
[1766468919974,3.3846023,125.07,125.03,0.71]
[1766468920191,2.7046023,125.06,125.03,0.71]
[1766468920488,11.38133412,125.06,125.03,0.71]
[1766468921997,8.6757002,125.07,125.03,0.71]
[1766468923795,0.68,125.06,125.03,0.71]
[1766468924600,8.67634737,125.06,125.03,0.71]
[1766468925863,22.6157021,125.07,125.04,0.71]
[1766468926279,23.2957021,125.07,125.04,0.71]
[1766468927294,25.03767296,125.09,125.06,0.71]
[1766468927506,17.9846023,125.11,125.07,0.71]
[1766468927669,28.42227526,125.11,125.07,0.71]
[1766468928287,7.99378515,125.1,125.07,0.71]
[1766468930703,8.67378515,125.1,125.07,0.71]
[1766468932900,3.3846023,125.09,125.04,2.7046023]
[1766468933202,3.3846023,125.09,125.05,0.71]
[1766468934407,0.68,125.07,125.03,3.4146023]
[1766468934696,0.68,125.07,125.03,0.71]
[1766468934895,0.68,125.07,125.04,0.71]
[1766468935096,45.96669375,125.08,125.04,0.71]
[1766468935289,45.28669375,125.08,125.04,0.71]
[1766468935489,0.68,125.07,125.04,0.71]
[1766468935794,8.67555214,125.07,125.04,0.71]
[1766468936503,7.99555214,125.07,125.04,2.7046023]
[1766468936801,7.99555214,125.07,125.05,0.71]
[1766468937197,23.27492742,125.08,125.05,0.71]
[1766468937495,7.99492742,125.08,125.05,0.71]
[1766468937891,8.67492742,125.08,125.05,0.71]
[1766468938296,7.99492742,125.08,125.05,0.71]
[1766468940300,3.3846023,125.08,125.05,0.71]
[1766468940803,0.68,125.07,125.04,0.71]
[1766468941709,3.3846023,125.06,125.02,0.71]
[1766468942010,2.7046023,125.05,125.02,0.71]
[1766468942191,3.3846023,125.05,125.02,0.71]
[1766468942513,7.99744081,125.04,125.02,0.71]
[1766468944693,7.99744081,125.04,125.01,0.71]
[1766468949504,8.71744081,125.04,125.01,0.71]
[1766468951109,7.99744081,125.04,125.01,0.71]
[1766468953326,11.42163422,125.05,125.01,0.71]
[1766468953719,7.99703192,125.05,125.01,2.7046023]
[1766468953912,7.99703192,125.05,125.02,0.71]
[1766468954318,8.71703192,125.05,125.02,0.71]
[1766468955315,3.4246023,125.08,125.03,2.7046023]
[1766468955622,0.72,125.08,125.05,0.71]
[1766468956018,11.4195872,125.08,125.05,0.71]
[1766468956905,0.72,125.07,125.04,0.71]
[1766468957113,0.72,125.06,125.03,0.71]
[1766468965131,0.72,125.06,125.02,2.7046023]
[1766468965132,3.4246023,125.04,125.01,0.71]
[1766468965610,3.4246023,125.04,125.0,0.71]
[1766468967339,3.4246023,125.02,124.98,0.71]
[1766468967746,0.72,125.02,124.99,0.71]
[1766468970848,7.99832873,125.03,125.0,0.71]
[1766468971150,7.99761915,125.04,125.01,2.7046023]
[1766468971447,8.71698626,125.05,125.02,0.71]
[1766468971845,33.73402786,125.06,125.03,0.66]
[1766468972354,19.13402786,125.06,125.03,0.66]
[1766468976243,18.0046023,125.08,125.04,0.71]
[1766468976942,21.13670092,125.09,125.05,0.71]
[1766468977250,7.99442566,125.09,125.06,0.71]
[1766468977458,11.39902796,125.09,125.06,0.71]
[1766468981860,30.42113771,125.11,125.04,10.70197932]
[1766468981861,19.13083877,125.11,125.08,0.71]
[1766468982036,18.43083877,125.11,125.08,0.71]
[1766468982240,7.99316581,125.11,125.08,0.71]
[1766468983172,7.99316581,125.11,125.09,0.71]
[1766468983343,19.52219523,125.13,125.09,0.71]
[1766468984258,27.5140885,125.13,125.09,0.71]
[1766468984452,4.92219523,125.12,125.09,0.71]
[1766468984650,4.92219523,125.12,125.08,0.71]
[1766468985962,12.91457296,125.12,125.08,0.71]
[1766468987567,4.92219523,125.11,125.08,0.71]
[1766468988153,0.7,125.11,125.08,0.71]
[1766468989470,12.91551629,125.11,125.08,0.71]
[1766468989883,8.69332106,125.11,125.08,0.71]
[1766468994678,12.21456659,125.12,125.08,0.71]
[1766468994873,12.91456659,125.12,125.08,0.71]
[1766468997787,8.69237136,125.12,125.08,0.71]
[1766468997963,12.91456659,125.12,125.08,0.71]
[1766468999583,7.99237136,125.12,125.09,0.71]
[1766468999880,27.51410835,125.13,125.09,0.71]
[1766469000182,14.6,125.13,125.09,4.22219523]
[1766469000387,0.7,125.13,125.1,0.71]
[1766469000572,4.92219523,125.13,125.1,0.71]
[1766469001470,12.91428607,125.13,125.1,0.71]
[1766469001892,8.69209084,125.13,125.1,0.71]
[1766469002065,12.91428607,125.13,125.1,0.71]
[1766469004889,8.69209084,125.13,125.1,0.71]
[1766469005089,8.6911826,125.14,125.11,0.71]
[1766469007794,14.7,125.15,125.13,0.69]
[1766469007970,0.1,125.15,125.14,0.69]
[1766469008176,0.1,125.17,125.15,0.69]
[1766469009296,12.99156754,125.17,125.13,0.69]
[1766469009485,4.22219523,125.16,125.13,0.69]
[1766469010304,4.90219523,125.16,125.13,0.69]
[1766469010495,0.68,125.16,125.13,0.69]
[1766469010691,12.99156754,125.17,125.13,0.69]
[1766469011002,0.1,125.17,125.14,0.69]
[1766469012791,0.78,125.17,125.14,0.69]
[1766469013574,0.68,125.16,125.12,0.69]
[1766469013773,4.90219523,125.15,125.1,4.22219523]
[1766469013984,4.90219523,125.15,125.11,0.69]
[1766469014392,0.68,125.15,125.11,0.69]
[1766469014597,4.90219523,125.15,125.11,0.69]
[1766469015301,4.22219523,125.15,125.11,0.69]
[1766469015678,27.49237976,125.16,125.11,4.22219523]
[1766469015871,0.68,125.15,125.12,0.69]
[1766469016074,22.59018453,125.16,125.12,0.69]
[1766469016305,0.1,125.17,125.14,0.69]
[1766469016804,0.78,125.17,125.14,0.69]
[1766469018311,0.1,125.17,125.14,0.69]
[1766469018490,0.1,125.17,125.14,4.91219523]
[1766469018685,0.1,125.17,125.15,0.69]
[1766469019296,0.1,125.17,125.14,0.69]
[1766469019615,12.31136089,125.17,125.14,0.69]
[1766469019819,12.99136089,125.17,125.14,0.69]
[1766469020115,8.08916566,125.17,125.1,18.4310997]
[1766469020296,0.68,125.16,125.11,4.22219523]
[1766469020511,4.90219523,125.16,125.11,4.22219523]
[1766469020818,0.68,125.16,125.11,4.22219523]
[1766469020993,4.90219523,125.16,125.11,4.22219523]
[1766469022112,12.21219209,125.16,125.11,0.69]
[1766469022418,0.68,125.15,125.11,4.91219523]
[1766469022609,0.68,125.15,125.12,0.69]
[1766469024196,0.68,125.14,125.09,0.69]
[1766469024403,4.90219523,125.14,125.1,0.69]
[1766469024603,8.67042898,125.15,125.11,0.69]
[1766469024816,12.89262421,125.15,125.11,0.69]
[1766469025521,7.99000345,125.16,125.11,0.69]
[1766469025695,7.99000345,125.16,125.14,0.69]
[1766469026421,0.68,125.14,125.11,0.69]
[1766469026798,4.90219523,125.15,125.11,0.69]
[1766469027718,0.68,125.15,125.11,4.91219523]
[1766469028018,8.67047143,125.15,125.11,4.91219523]
[1766469028612,0.68,125.15,125.12,4.91219523]
[1766469029496,7.98998644,125.16,125.12,4.22219523]
[1766469029725,23.36926249,125.17,125.13,4.91219523]
[1766469030116,0.68,125.16,125.13,4.91219523]
[1766469030822,0.68,125.16,125.13,0.69]
[1766469031029,0.68,125.16,125.12,4.91219523]
[1766469033326,0.68,125.16,125.12,0.69]
[1766469033527,0.68,125.16,125.12,4.91219523]
[1766469033923,26.91145772,125.17,125.1,4.22219523]
[1766469034124,26.91145772,125.17,125.14,0.69]
[1766469034125,22.68926249,125.17,125.14,0.69]
[1766469034340,8.79926249,125.17,125.14,0.69]
[1766469034838,0.1,125.17,125.14,4.91219523]
[1766469036925,0.1,125.17,125.14,0.69]
[1766469037117,0.1,125.17,125.14,4.91219523]
[1766469037834,0.1,125.17,125.15,4.22219523]
[1766469039298,0.1,125.17,125.14,0.71]
[1766469039500,0.1,125.17,125.15,4.22219523]
[1766469039729,0.1,125.17,125.15,4.93219523]
[1766469042135,0.1,125.17,125.15,3.40912337]
[1766469042631,0.1,125.17,125.15,2.69912337]
[1766469042937,0.78,125.17,125.14,3.40912337]
[1766469043230,0.78,125.17,125.14,2.69912337]
[1766469043438,0.78,125.17,125.15,2.69912337]
[1766469044036,0.1,125.17,125.15,3.40912337]
[1766469045918,0.1,125.17,125.15,0.71]
[1766469046238,0.1,125.17,125.15,3.40912337]
[1766469047257,0.1,125.17,125.15,0.71]
[1766469047570,0.78,125.17,125.14,3.40912337]
[1766469047744,0.78,125.17,125.14,0.71]
[1766469047932,0.78,125.17,125.14,3.40912337]
[1766469048126,0.78,125.17,125.14,0.71]
[1766469048326,0.78,125.17,125.14,3.40912337]
[1766469051556,8.76926446,125.17,125.14,0.71]
[1766469051746,8.76926446,125.17,125.14,3.40912337]
[1766469056863,0.78,125.17,125.14,3.40912337]
[1766469057968,8.76913509,125.17,125.14,3.40912337]
[1766469058870,8.76913509,125.17,125.14,0.71]
[1766469059071,8.76913509,125.17,125.14,3.40912337]
[1766469060263,0.68,125.16,125.12,3.40912337]
[1766469060462,0.68,125.15,125.12,3.40912337]
[1766469061142,0.68,125.15,125.12,0.71]
[1766469061343,0.1,125.17,125.14,3.40912337]
[1766469061559,0.78,125.17,125.14,3.40912337]
[1766469062276,0.68,125.15,125.12,3.40912337]
[1766469062476,0.68,125.15,125.12,0.71]
[1766469062645,0.68,125.15,125.12,3.40912337]
[1766469063572,0.68,125.15,125.13,2.69912337]
[1766469065357,0.68,125.15,125.12,3.40912337]
[1766469068468,7.98977309,125.16,125.12,2.69912337]
[1766469068674,0.69,125.16,125.13,2.69912337]
[1766469069182,0.69,125.16,125.13,3.38912337]
[1766469071568,8.08913477,125.17,125.14,3.38912337]
[1766469071765,0.1,125.17,125.15,0.69]
[1766469071964,0.1,125.17,125.15,3.38912337]
[1766469072582,0.1,125.17,125.16,2.69912337]
[1766469072954,0.1,125.17,125.15,0.69]
[1766469073153,0.1,125.17,125.15,3.38912337]
[1766469074156,0.79,125.17,125.11,0.69]
[1766469074356,0.69,125.16,125.12,3.38912337]
[1766469074581,0.69,125.16,125.12,2.69912337]
[1766469074854,0.69,125.16,125.13,3.38912337]
[1766469075788,0.1,125.17,125.14,3.38912337]
[1766469075789,0.79,125.17,125.14,3.38912337]
[1766469077079,0.1,125.19,125.15,2.69912337]
[1766469077385,0.1,125.19,125.15,3.38912337]
[1766469077588,0.79,125.19,125.15,2.69912337]
[1766469078166,8.77808648,125.19,125.15,2.69912337]
[1766469078989,0.69,125.18,125.15,2.69912337]
[1766469079692,8.08808648,125.19,125.17,3.38912337]
[1766469079693,0.1,125.19,125.17,3.38912337]
[1766469079868,0.79,125.2,125.18,2.69912337]
[1766469080397,0.79,125.2,125.17,3.38912337]
[1766469081789,0.1,125.2,125.19,2.69912337]
[1766469081996,0.1,125.21,125.19,3.38912337]
[1766469082684,0.1,125.21,125.19,0.69]
[1766469082996,0.79,125.21,125.18,3.38912337]
[1766469084096,0.69,125.2,125.17,3.38912337]
[1766469084299,0.69,125.2,125.16,0.69]
[1766469084481,0.69,125.2,125.16,3.38912337]
[1766469084683,0.69,125.2,125.17,2.69912337]
[1766469084880,0.69,125.2,125.17,3.38912337]
[1766469085078,0.69,125.2,125.18,2.69912337]
[1766469086301,0.69,125.2,125.17,0.69]
[1766469086601,0.69,125.2,125.17,3.38912337]
[1766469087703,0.69,125.2,125.17,2.69912337]
[1766469089101,0.69,125.2,125.17,3.38912337]
[1766469089499,0.69,125.2,125.17,0.69]
[1766469089793,0.69,125.2,125.17,3.38912337]
[1766469090702,0.69,125.2,125.17,0.69]
[1766469090874,0.69,125.2,125.17,3.38912337]
[1766469092099,0.69,125.2,125.18,2.69912337]
[1766469092912,0.8,125.21,125.18,3.39912337]
[1766469093412,0.8,125.21,125.18,0.7]
[1766469093710,2.69912337,125.2,125.16,3.39912337]
[1766469093915,0.7,125.19,125.14,2.69912337]
[1766469094112,28.05331465,125.21,125.16,2.69912337]
[1766469094411,0.7,125.2,125.16,3.39912337]
[1766469096318,0.7,125.19,125.16,3.39912337]
[1766469098520,0.7,125.2,125.17,3.36912337]
[1766469098992,0.7,125.2,125.18,2.69912337]
[1766469100017,0.1,125.21,125.19,2.69912337]
[1766469100205,0.1,125.21,125.2,2.69912337]
[1766469100405,0.1,125.21,125.19,0.67]
[1766469100603,0.1,125.21,125.2,2.69912337]
[1766469101000,0.8,125.21,125.19,2.69912337]
[1766469101207,0.8,125.21,125.18,2.69912337]
[1766469101891,0.8,125.21,125.17,4.88599034]
[1766469102095,0.8,125.21,125.17,0.67]
[1766469102317,0.8,125.21,125.16,15.27]
[1766469102525,0.8,125.21,125.17,4.21599034]
[1766469102708,0.7,125.2,125.17,4.21599034]
[1766469103114,0.7,125.2,125.16,15.27]
[1766469103425,0.7,125.2,125.17,4.21599034]
[1766469106093,7.98749569,125.2,125.16,4.88599034]
[1766469106302,0.7,125.19,125.16,4.88599034]
[1766469107414,0.7,125.19,125.16,4.21599034]
[1766469111134,0.7,125.19,125.15,0.67]
[1766469111513,8.6878863,125.19,125.16,4.21599034]
[1766469112309,0.7,125.19,125.16,4.21599034]
[1766469112514,0.7,125.19,125.16,4.88599034]
[1766469116548,0.7,125.18,125.14,0.67]
[1766469116721,0.7,125.18,125.15,4.88599034]
[1766469117037,0.7,125.18,125.16,4.21599034]
[1766469120515,19.12498656,125.2,125.17,4.88599034]
[1766469120720,8.6873136,125.2,125.18,4.21599034]
[1766469120938,0.8,125.21,125.18,4.88599034]
[1766469121114,0.8,125.21,125.19,4.21599034]
[1766469121312,8.08671433,125.21,125.18,4.21599034]
[1766469121539,0.7,125.2,125.17,4.21599034]
[1766469121840,0.7,125.2,125.17,4.88599034]
[1766469123034,0.8,125.21,125.19,4.21599034]
[1766469123541,8.78660918,125.21,125.18,4.88599034]
[1766469126451,8.78660918,125.21,125.19,4.21599034]
[1766469129550,8.78660918,125.21,125.18,4.88599034]
[1766469130560,0.8,125.21,125.18,4.88599034]
[1766469130851,0.1,125.21,125.19,4.93599034]
[1766469132946,0.1,125.21,125.2,4.21599034]
[1766469133160,0.1,125.21,125.2,4.93599034]
[1766469133347,0.1,125.21,125.19,4.93599034]
[1766469136360,0.71,125.2,125.16,0.72]
[1766469136555,0.71,125.2,125.18,4.21599034]
[1766469136742,0.81,125.21,125.18,4.93599034]
[1766469136943,0.81,125.21,125.19,4.21599034]
[1766469140769,0.1,125.21,125.19,4.93599034]
[1766469141472,0.81,125.21,125.18,4.21599034]
[1766469141655,0.81,125.21,125.18,4.93599034]
[1766469142477,0.1,125.21,125.19,4.93599034]
[1766469142765,0.1,125.22,125.2,4.93599034]
[1766469142976,0.81,125.22,125.2,4.93599034]
[1766469143137,0.81,125.22,125.19,0.72]
[1766469143343,0.71,125.21,125.18,4.21599034]
[1766469143566,0.71,125.21,125.18,4.93599034]
[1766469144567,0.71,125.21,125.18,0.72]
[1766469144870,0.71,125.21,125.18,4.93599034]
[1766469145165,8.69660663,125.21,125.18,4.93599034]
[1766469147375,0.71,125.21,125.19,4.21599034]
[1766469147776,8.79616306,125.22,125.19,4.93599034]
[1766469148773,0.81,125.22,125.19,4.93599034]
[1766469150257,0.81,125.22,125.19,4.21599034]
[1766469150460,0.81,125.22,125.18,4.93599034]
[1766469150871,0.71,125.21,125.18,4.93599034]
[1766469154167,0.71,125.21,125.19,4.21599034]
[1766469156980,0.71,125.21,125.18,4.93599034]
[1766469157356,0.71,125.21,125.19,4.21599034]
[1766469157680,0.71,125.21,125.18,0.72]
[1766469157983,0.71,125.21,125.19,4.21599034]
[1766469158362,0.71,125.21,125.18,4.93599034]
[1766469159771,0.1,125.22,125.19,4.21599034]